bitfinex/quotes_SOLUSD_20250118
["timestamp","ask_amount","ask_price","bid_price","bid_amount"]
[1737192407975,20.1864525,238.78,238.76,0.03]
[1737192409553,32.7364525,238.92,238.76,0.03]
[1737192409554,3.10104149,238.77,238.76,0.03]
[1737192410779,3.10104149,238.77,238.76,20.2164525]
[1737192411478,20.1864525,238.85,238.76,20.2164525]
[1737192411770,20.1864525,238.83,238.76,20.2164525]
[1737192411965,20.1864525,238.81,238.76,0.03]
[1737192412782,8.08953225,238.8,238.76,0.03]
[1737192413158,11.20105026,238.8,238.76,0.03]
[1737192413679,20.1864525,238.79,238.76,0.03]
[1737192414275,23.29781106,238.79,238.76,0.03]
[1737192414474,3.11151801,238.78,238.76,0.03]
[1737192415660,3.11135856,238.77,238.76,0.03]
[1737192416668,0.95645856,238.77,238.76,0.03]
[1737192416873,20.1864525,238.79,238.76,0.03]
[1737192417069,20.1864525,238.77,238.76,0.03]
[1737192419085,20.1864525,238.79,238.76,0.03]
[1737192419591,20.1864525,238.81,238.76,0.03]
[1737192422680,20.1864525,238.77,238.76,0.03]
[1737192423793,43.9633365,238.77,238.76,0.03]
[1737192423994,82.8,239.34,238.76,0.03]
[1737192423995,4.1865,238.86,238.76,0.03]
[1737192424192,20.1864525,238.79,238.76,0.03]
[1737192424796,20.1864525,238.77,238.76,0.03]
[1737192425485,43.9633365,238.77,238.76,0.03]
[1737192425970,44.7489466,238.77,238.76,0.03]
[1737192426172,20.0,238.73,238.72,0.03]
[1737192426388,20.0,238.69,238.5,20.1864525]
[1737192426594,52.7851365,238.66,238.5,20.1864525]
[1737192426893,20.1864525,238.52,238.44,20.1864525]
[1737192427377,20.1864525,238.5,238.42,26.59544608]
[1737192427691,20.1864525,238.5,238.42,20.1864525]
[1737192427996,209.24080373,238.9,238.48,20.1864525]
[1737192428184,20.1864525,238.63,238.54,20.1864525]
[1737192428492,8.8218,238.72,238.65,20.0]
[1737192428493,6.51276028,238.72,238.65,20.0]
[1737192428690,6.51276028,238.72,238.65,40.50850428]
[1737192428990,26.69921278,238.72,238.65,20.1864525]
[1737192429191,20.1864525,238.7,238.61,20.1864525]
[1737192429369,20.1864525,238.68,238.59,20.1864525]
[1737192429766,0.25143,238.64,238.57,20.1864525]
[1737192429996,20.4378825,238.64,238.57,20.1864525]
[1737192430207,20.4378825,238.64,238.55,29.0655525]
[1737192430384,20.4378825,238.64,238.55,20.1864525]
[1737192430578,20.1864525,238.6,238.53,20.1864525]
[1737192430797,20.1864525,238.6,238.52,0.03]
[1737192430985,20.1864525,238.58,238.52,0.03]
[1737192431390,20.1864525,238.58,238.54,20.0]
[1737192431588,20.4378825,238.64,238.55,20.1864525]
[1737192431794,20.1864525,238.62,238.53,20.1864525]
[1737192431995,20.1864525,238.58,238.52,0.03]
[1737192432578,20.1864525,238.54,238.52,0.03]
[1737192434198,20.1864525,238.56,238.52,0.03]
[1737192434779,20.1864525,238.58,238.52,0.03]
[1737192434996,20.1864525,238.62,238.53,20.1864525]
[1737192435316,7.9245,238.63,238.52,0.03]
[1737192435483,12.6445612,238.62,238.54,12.6445612]
[1737192435683,0.25143,238.64,238.59,20.0]
[1737192436089,0.25143,238.64,238.52,8.2536]
[1737192436090,12.6445612,238.62,238.52,8.2536]
[1737192436290,0.25143,238.64,238.56,12.6445612]
[1737192436497,0.25143,238.64,238.58,12.6445612]
[1737192436808,12.8959912,238.64,238.56,12.6445612]
[1737192437796,12.6445612,238.62,238.55,20.0]
[1737192437990,12.6445612,238.62,238.54,12.6445612]
[1737192438199,12.8959912,238.64,238.56,12.6445612]
[1737192438700,12.6445612,238.62,238.54,12.6445612]
[1737192440001,12.6445612,238.62,238.52,0.03]
[1737192440209,12.6445612,238.62,238.53,12.6445612]
[1737192440412,12.6445612,238.6,238.52,0.03]
[1737192440593,0.25143,238.64,238.57,12.6445612]
[1737192440916,0.25143,238.64,238.59,12.6445612]
[1737192441591,0.25143,238.64,238.52,0.3531955]
[1737192441592,0.25143,238.64,238.61,12.6445612]
[1737192442295,0.25143,238.64,238.59,12.6445612]
[1737192442793,0.25143,238.64,238.57,12.6445612]
[1737192442999,0.25143,238.64,238.59,12.6445612]
[1737192444012,0.25143,238.64,238.62,20.0]
[1737192444215,18.3941,238.79,238.63,12.9670034]
[1737192444216,12.6445612,238.76,238.63,12.9670034]
[1737192444423,12.6445612,238.76,238.67,12.6445612]
[1737192444912,12.6445612,238.68,238.54,82.9]
[1737192445119,12.6445612,238.68,238.58,12.6445612]
[1737192445294,12.6445612,238.66,238.58,12.6445612]
[1737192445703,12.6445612,238.64,238.56,12.6445612]
[1737192446516,12.6445612,238.64,238.56,12.6745612]
[1737192447385,4.97534096,238.69,238.56,0.03]
[1737192447386,20.22673817,238.63,238.56,0.03]
[1737192448520,20.22673817,238.63,238.56,20.25673817]
[1737192448698,20.22673817,238.65,238.56,20.25673817]
[1737192449619,20.22673817,238.69,238.6,20.22673817]
[1737192449799,7.9245,238.79,238.64,20.22673817]
[1737192449800,20.22673817,238.73,238.64,20.22673817]
[1737192450126,20.22673817,238.71,238.62,20.22673817]
[1737192450344,20.22673817,238.65,238.56,0.03]
[1737192450630,20.22673817,238.65,238.57,20.22673817]
[1737192452635,20.22673817,238.68,238.61,20.22673817]
[1737192452809,20.22673817,238.72,238.63,20.22673817]
[1737192453005,20.22673817,238.67,238.59,40.22673817]
[1737192453541,28.75139676,238.73,238.59,40.22673817]
[1737192453719,20.22673817,238.71,238.63,20.22673817]
[1737192454109,20.22673817,238.69,238.59,20.22673817]
[1737192454422,7.9245,238.79,238.56,0.03]
[1737192454423,6.51276028,238.9,238.75,20.0]
[1737192454729,6.51276028,238.9,238.89,20.22673817]
[1737192455236,4.35666028,238.9,238.89,20.22673817]
[1737192455638,7.912,238.96,238.89,20.22673817]
[1737192455820,7.912,238.96,238.87,20.22673817]
[1737192457015,20.22673817,239.0,238.91,20.22673817]
[1737192457238,7.912,239.03,238.95,20.22673817]
[1737192457545,7.912,239.03,238.85,26.17072723]
[1737192457546,20.22673817,239.02,238.93,20.22673817]
[1737192457912,20.22673817,239.0,238.91,20.22673817]
[1737192458339,20.22673817,238.98,238.87,20.22673817]
[1737192458539,20.22673817,238.93,238.83,20.22673817]
[1737192458741,20.22673817,238.95,238.85,20.22673817]
[1737192459143,20.22673817,238.93,238.83,20.22673817]
[1737192459542,0.063,238.97,238.81,4.9]
[1737192459543,20.28973817,238.97,238.87,20.22673817]
[1737192459956,20.22673817,238.95,238.87,20.22673817]
[1737192460329,20.22673817,238.95,238.88,20.0]
[1737192460525,20.28973817,238.93,238.85,20.22673817]
[1737192460956,0.063,238.93,238.85,20.22673817]
[1737192461537,20.28973817,238.93,238.85,20.22673817]
[1737192462559,0.063,238.93,238.85,20.22673817]
[1737192464043,0.063,238.97,238.9,20.22673817]
[1737192464855,20.22673817,238.91,238.84,20.22673817]
[1737192465049,19.59863817,238.85,238.76,20.22673817]
[1737192465240,20.22673817,238.84,238.76,20.22673817]
[1737192465442,20.22673817,238.79,238.72,82.9]
[1737192465843,7.9941,238.88,238.72,82.9]
[1737192466033,7.9941,238.88,238.75,20.0]
[1737192466360,2.1414,238.91,238.76,0.62800815]
[1737192466688,2.1414,238.91,238.76,0.62793662]
[1737192466845,20.22673817,238.86,238.82,20.0]
[1737192467044,19.99763817,238.86,238.82,20.0]
[1737192468374,20.22673817,238.84,238.76,20.22673817]
[1737192468572,20.22673817,238.81,238.73,20.22673817]
[1737192468864,20.22673817,238.78,238.7,20.22673817]
[1737192469076,20.22673817,238.77,238.7,20.22673817]
[1737192469271,20.22673817,238.73,238.67,20.22673817]
[1737192469460,20.22673817,238.8,238.63,20.22673817]
[1737192469461,20.22673817,238.71,238.63,20.22673817]
[1737192469971,20.22673817,238.71,238.66,20.0]
[1737192470269,20.22673817,238.71,238.65,20.22673817]
[1737192470477,20.22673817,238.67,238.59,25.12673817]
[1737192470677,20.22673817,238.75,238.68,20.0]
[1737192470852,20.22673817,238.78,238.69,20.22673817]
[1737192471051,20.22673817,238.82,238.74,20.22673817]
[1737192471256,20.22673817,238.8,238.72,20.22673817]
[1737192472856,20.22673817,238.8,238.66,0.62814455]
[1737192472857,20.22673817,238.74,238.66,20.22673817]
[1737192473052,20.22673817,238.78,238.68,20.22673817]
[1737192473250,20.22673817,238.76,238.68,20.22673817]
[1737192473562,20.22673817,238.76,238.69,20.0]
[1737192474149,20.22673817,238.72,238.64,20.22673817]
[1737192474349,20.22673817,238.7,238.62,20.22673817]
[1737192474877,20.22673817,238.68,238.61,0.03]
[1737192476474,20.22673817,238.62,238.61,0.03]
[1737192477676,23.776884,238.61,238.56,0.03]
[1737192477903,20.22673817,238.58,238.56,0.03]
[1737192478763,52.46085755,238.58,238.56,0.03]
[1737192480357,28.22083817,238.58,238.56,0.03]
[1737192480663,28.22083817,238.58,238.52,0.03]
[1737192480875,20.22673817,238.56,238.52,0.03]
[1737192481381,20.22673817,238.6,238.52,20.25673817]
[1737192481687,20.22673817,238.62,238.54,20.22673817]
[1737192481866,20.22673817,238.66,238.58,20.22673817]
[1737192482076,20.22673817,238.68,238.6,20.22673817]
[1737192482789,7.9941,238.71,238.6,20.22673817]
[1737192482957,13.02552057,238.9,238.78,240.2]
[1737192483155,13.02552057,238.9,238.89,20.22673817]
[1737192483381,28.22083817,239.12,238.92,20.0]
[1737192483583,20.22673817,239.14,238.93,0.62752884]
[1737192483788,0.063,239.15,238.93,7.63310599]
[1737192483985,13.01158139,239.05,238.95,20.22673817]
[1737192484686,0.063,239.05,238.95,20.22673817]
[1737192485361,0.063,239.05,238.96,32.7435681]
[1737192485885,32.8065681,239.05,238.96,32.7435681]
[1737192486055,32.7435681,239.02,238.95,20.0]
[1737192486260,32.7435681,239.04,238.96,20.0]
[1737192486788,32.7435681,239.02,238.96,20.0]
[1737192487769,0.063,239.05,238.96,20.0]
[1737192487964,32.7435681,239.03,238.96,20.0]
[1737192488171,0.063,239.05,238.96,33.37112489]
[1737192488372,32.7435681,239.04,238.96,32.7435681]
[1737192488686,32.7435681,239.04,238.96,20.0]
[1737192489093,32.7435681,239.02,238.96,20.0]
[1737192489460,32.7435681,239.02,238.92,32.7435681]
[1737192489681,32.7435681,239.0,238.92,32.7435681]
[1737192490888,32.7435681,238.98,238.93,20.0]
[1737192491090,32.7435681,238.98,238.88,32.7435681]
[1737192491289,32.7435681,238.96,238.91,20.0]
[1737192491673,32.7435681,238.94,238.86,82.9]
[1737192492093,32.7435681,238.94,238.86,115.6435681]
[1737192492292,32.7435681,238.98,238.91,20.0]
[1737192492795,31.2775681,238.96,238.87,7.00557715]
[1737192493990,32.7435681,238.94,238.9,20.0]
[1737192494697,32.7435681,238.94,238.87,7.00557715]
[1737192495491,32.7435681,238.88,238.73,32.7435681]
[1737192495805,32.7435681,238.92,238.72,82.9]
[1737192495806,32.7435681,238.74,238.72,82.9]
[1737192496098,32.7435681,238.78,238.72,82.9]
[1737192496282,32.7435681,238.92,238.72,82.9]
[1737192496283,32.7435681,238.8,238.73,0.62808674]
[1737192496493,32.7435681,238.92,238.73,33.37165484]
[1737192496802,32.7435681,238.81,238.76,20.0]
[1737192496986,32.7435681,238.77,238.72,82.9]
[1737192497170,32.7435681,238.75,238.72,82.9]
[1737192497497,32.7435681,238.77,238.72,82.9]
[1737192497897,32.7435681,238.81,238.73,56.5204521]
[1737192498093,32.7435681,238.85,238.8,20.0]
[1737192498282,32.7435681,238.92,238.8,20.0]
[1737192498283,32.7435681,238.83,238.8,20.0]
[1737192498678,32.7435681,238.83,238.78,20.0]
[1737192499906,32.2955681,238.81,238.78,20.0]
[1737192500294,32.7435681,238.79,238.77,20.0]
[1737192500597,32.7435681,238.79,238.72,87.88]
[1737192500802,32.7435681,238.77,238.75,20.0]
[1737192501100,32.7435681,238.79,238.75,20.0]
[1737192501398,32.7435681,238.81,238.76,20.0]
[1737192501584,32.7435681,238.79,238.76,20.0]
[1737192502191,32.7435681,238.79,238.75,20.0]
[1737192502885,27.962584,238.91,238.75,20.0]
[1737192503188,32.7435681,238.8,238.75,20.0]
[1737192503389,32.7435681,238.85,238.81,20.0]
[1737192504003,32.7435681,238.85,238.76,32.7435681]
[1737192504204,32.7435681,238.85,238.79,20.0]
[1737192504905,32.8065681,238.92,238.72,115.6435681]
[1737192504906,32.7435681,238.81,238.72,115.6435681]
[1737192505081,32.7435681,238.81,238.75,20.0]
[1737192505392,32.7435681,238.81,238.72,115.6435681]
[1737192505393,32.7435681,238.83,238.77,20.0]
[1737192506703,32.7435681,238.85,238.8,20.0]
[1737192506907,32.7435681,238.85,238.77,32.7435681]
[1737192507205,32.2955681,238.85,238.77,32.7435681]
[1737192507509,20.18700156,238.85,238.77,20.18700156]
[1737192508297,20.18700156,238.81,238.73,20.18700156]
[1737192508492,24.43550156,238.92,238.67,20.18700156]
[1737192508493,20.18700156,238.75,238.67,20.18700156]
[1737192508684,20.18700156,238.69,238.61,20.18700156]
[1737192508883,20.18700156,238.67,238.59,20.18700156]
[1737192509383,20.18700156,238.69,238.61,20.18700156]
[1737192509588,19.73870156,238.71,238.63,20.18700156]
[1737192509789,20.18700156,238.7,238.62,20.18700156]
[1737192510391,20.18700156,238.7,238.6,20.18700156]
[1737192510591,20.18700156,238.68,238.6,20.18700156]
[1737192511110,20.18700156,238.7,238.62,20.18700156]
[1737192511489,19.73870156,238.7,238.62,20.18700156]
[1737192511700,20.18700156,238.72,238.67,20.0]
[1737192511884,20.18700156,238.76,238.68,20.18700156]
[1737192513090,20.18700156,238.76,238.66,20.18700156]
[1737192513402,7.9393,238.82,238.66,20.18700156]
[1737192513403,20.18700156,238.8,238.66,20.18700156]
[1737192513594,20.18700156,238.74,238.66,20.18700156]
[1737192513803,19.73880156,238.74,238.66,20.18700156]
[1737192514315,20.18700156,238.79,238.73,20.0]
[1737192514487,20.18700156,238.77,238.73,20.0]
[1737192514806,20.18700156,238.75,238.66,20.18700156]
[1737192514998,20.18700156,238.73,238.64,20.18700156]
[1737192515199,20.18700156,238.8,238.72,20.18700156]
[1737192515586,20.18700156,238.8,238.7,20.18700156]
[1737192515788,20.18700156,238.78,238.7,20.18700156]
[1737192515984,20.25000156,238.92,238.76,20.18700156]
[1737192515985,20.18700156,238.85,238.76,20.18700156]
[1737192516392,20.18700156,238.81,238.72,4.9]
[1737192516592,20.18700156,238.77,238.72,4.9]
[1737192517492,20.18700156,238.75,238.72,4.9]
[1737192519009,20.18700156,238.73,238.65,20.18700156]
[1737192519395,10.4659,238.87,238.65,20.18700156]
[1737192519595,20.18700156,238.73,238.65,20.18700156]
[1737192519811,20.18700156,238.73,238.63,20.18700156]
[1737192520012,20.18700156,238.77,238.67,20.18700156]
[1737192520309,20.18700156,238.75,238.67,20.18700156]
[1737192520817,20.18700156,238.75,238.68,20.0]
[1737192520996,20.18700156,238.73,238.65,20.18700156]
[1737192521204,20.18700156,238.73,238.63,20.18700156]
[1737192521414,19.73880156,238.71,238.61,20.18700156]
[1737192521710,20.18700156,238.67,238.59,20.18700156]
[1737192522609,20.18700156,238.71,238.63,20.18700156]
[1737192522922,20.18700156,238.74,238.65,20.18700156]
[1737192523299,20.18700156,238.72,238.66,20.0]
[1737192523601,20.18700156,238.72,238.65,0.03]
[1737192524815,20.18700156,238.72,238.66,20.0]
[1737192525617,0.063,238.73,238.65,20.21700156]
[1737192526392,0.063,238.73,238.68,20.0]
[1737192527519,0.063,238.73,238.69,20.18700156]
[1737192527825,0.063,238.73,238.67,20.18700156]
[1737192528204,20.18700156,238.72,238.66,20.0]
[1737192529203,20.18700156,238.7,238.65,0.03]
[1737192529410,20.18700156,238.68,238.65,0.03]
[1737192530505,20.18700156,238.66,238.65,0.03]
[1737192530896,2.1381,238.64,238.44,82.9]
[1737192531102,20.18700156,238.53,238.44,103.08700156]
[1737192531309,20.18700156,238.53,238.44,82.9]
[1737192531796,20.18700156,238.53,238.4,20.18700156]
[1737192532412,43.96388556,238.53,238.34,4.9]
[1737192532608,43.96388556,238.53,238.38,20.18700156]
[1737192533019,43.96388556,238.53,238.41,20.0]
[1737192533230,43.96388556,238.53,238.38,20.18700156]
[1737192533611,43.96388556,238.53,238.41,20.0]
[1737192533795,43.96388556,238.53,238.38,20.18700156]
[1737192534315,20.18700156,238.53,238.42,20.18700156]
[1737192534909,20.18700156,238.53,238.44,20.18700156]
[1737192535704,20.18700156,238.53,238.46,20.18700156]
[1737192536428,22.1381,238.64,238.48,20.18700156]
[1737192536728,20.18700156,238.57,238.48,20.18700156]
[1737192537023,20.18700156,238.58,238.5,20.18700156]
[1737192537629,20.18700156,238.54,238.46,20.18700156]
[1737192538198,0.0001,238.73,238.61,232.75]
[1737192538495,20.18700156,238.82,238.71,20.18700156]
[1737192538698,0.063,238.92,238.81,20.0]
[1737192539010,20.18700156,238.87,238.82,0.62794494]
[1737192539313,32.79936874,238.87,238.82,0.62794494]
[1737192539514,32.79936874,238.85,238.81,20.0]
[1737192539717,32.79936874,238.83,238.74,32.79936874]
[1737192540024,32.79936874,238.81,238.74,32.79936874]
[1737192540217,32.79936874,238.83,238.77,20.0]
[1737192540809,32.79936874,238.81,238.74,20.0]
[1737192541020,32.79936874,238.79,238.7,32.79936874]
[1737192541322,32.79936874,238.77,238.68,32.79936874]
[1737192541621,32.79936874,238.77,238.71,20.0]
[1737192542013,43.32606874,238.92,238.73,20.0]
[1737192542014,32.79936874,238.79,238.73,20.0]
[1737192542327,32.86236874,238.92,238.75,20.0]
[1737192542328,32.79936874,238.84,238.75,20.0]
[1737192542621,32.79936874,238.82,238.75,20.0]
[1737192542803,32.79936874,238.81,238.76,20.0]
[1737192543000,0.063,238.92,238.78,20.0]
[1737192543323,32.79936874,238.85,238.77,32.79936874]
[1737192543530,0.063,238.92,238.86,20.0]
[1737192543825,0.063,238.96,238.94,20.0]
[1737192544031,0.063,238.96,238.95,32.79936874]
[1737192545908,0.063,238.96,238.93,32.79936874]
[1737192546106,0.063,238.96,238.95,32.79936874]
[1737192547329,0.063,238.96,238.95,40.22123806]
[1737192549732,0.063,238.96,238.95,32.79936874]
[1737192550412,0.063,238.96,238.95,20.0]
[1737192550737,0.063,238.96,238.91,32.79936874]
[1737192551042,32.86236874,238.96,238.88,82.9]
[1737192551232,32.86236874,238.96,238.85,32.79936874]
[1737192551233,32.79936874,238.94,238.85,32.79936874]
[1737192551432,32.79936874,238.9,238.83,32.79936874]
[1737192551927,32.79936874,238.94,238.9,20.0]
[1737192552111,0.063,238.96,238.87,32.79936874]
[1737192552522,32.79936874,238.95,238.9,20.0]
[1737192552712,32.79936874,238.93,238.85,32.79936874]
[1737192553130,0.063,238.96,238.89,32.79936874]
[1737192553731,0.063,238.96,238.94,52.79936874]
[1737192553931,0.063,238.96,238.95,0.62759434]
[1737192554313,0.063,238.96,238.94,52.79936874]
[1737192554609,0.063,238.96,238.95,0.6275865]
[1737192557213,0.063,238.96,238.94,58.05936874]
[1737192557614,0.063,238.96,238.9,32.79936874]
[1737192557826,0.063,238.96,238.88,32.79936874]
[1737192558025,0.063,238.96,238.93,20.0]
[1737192558416,0.063,238.96,238.9,32.79936874]
[1737192558615,0.063,238.96,238.83,0.62779276]
[1737192558616,0.063,238.96,238.88,32.79936874]
[1737192559916,0.063,238.96,238.92,0.03]
[1737192560307,32.79936874,238.97,238.92,0.03]
[1737192560934,32.79936874,238.95,238.92,0.03]
[1737192561135,32.79936874,238.93,238.92,0.03]
[1737192562214,32.79936874,238.97,238.92,0.03]
[1737192562409,32.79936874,238.99,238.93,20.0]
[1737192562721,32.79936874,238.99,238.95,20.0]
[1737192563632,32.79936874,238.99,238.93,20.0]
[1737192563839,32.79936874,238.95,238.92,0.03]
[1737192564019,32.79936874,238.93,238.92,0.03]
[1737192564614,56.57625274,238.93,238.92,0.03]
[1737192565315,32.79936874,238.93,238.92,0.03]
[1737192569135,32.79936874,238.95,238.92,0.03]
[1737192569338,32.79936874,238.99,238.93,20.0]
[1737192569833,32.79936874,238.97,238.93,20.0]
[1737192570037,32.79936874,238.97,238.92,0.03]
[1737192570336,32.79936874,238.93,238.92,0.03]
[1737192572618,89.37562148,238.93,238.92,0.03]
[1737192573343,93.56092148,238.93,238.92,0.03]
[1737192573535,89.37562148,238.93,238.92,0.03]
[1737192574943,56.57625274,238.93,238.92,0.03]
[1737192577146,60.76155274,238.93,238.92,0.03]
[1737192577629,32.79936874,238.93,238.92,0.03]
[1737192578950,32.79936874,238.95,238.92,0.03]
[1737192579331,20.17512769,238.93,238.92,0.03]
[1737192579827,43.95201169,238.93,238.92,0.03]
[1737192581049,64.12713938,238.93,238.92,0.03]
[1737192581235,68.31243938,238.93,238.92,0.03]
[1737192581745,20.0,238.85,238.71,0.03]
[1737192581927,20.17512769,238.74,238.71,0.03]
[1737192582332,20.17512769,238.8,238.71,0.03]
[1737192582333,20.17512769,238.72,238.71,0.03]
[1737192582844,23.776884,238.72,238.71,0.03]
[1737192583048,20.17512769,238.72,238.71,0.03]
[1737192583427,89.49797786,238.72,238.71,0.03]
[1737192583824,56.63743093,238.72,238.71,0.03]
[1737192584950,32.86054693,238.72,238.71,0.03]
[1737192585329,56.63743093,238.72,238.71,0.03]
[1737192585651,32.86054693,238.72,238.71,0.03]
[1737192586028,32.86054693,238.76,238.71,0.03]
[1737192586220,32.86054693,238.78,238.73,20.0]
[1737192586827,32.86054693,238.8,238.75,20.0]
[1737192587054,4.247,238.98,238.71,0.03]
[1737192587055,32.86054693,238.78,238.71,0.03]
[1737192587354,32.86054693,238.76,238.71,0.03]
[1737192587731,32.86054693,238.74,238.71,0.03]
[1737192588839,32.86054693,238.72,238.71,0.03]
[1737192591247,8.7285,238.89,238.74,20.0]
[1737192591453,41.58904693,238.89,238.8,32.86054693]
[1737192591954,32.86054693,238.87,238.8,32.86054693]
[1737192592161,32.86054693,238.87,238.78,32.86054693]
[1737192592648,32.86054693,238.85,238.76,32.86054693]
[1737192593042,32.86054693,238.85,238.79,20.0]
[1737192593351,32.86054693,238.83,238.79,20.0]
[1737192594739,32.86054693,238.81,238.72,37.88054693]
[1737192594940,32.86054693,238.78,238.72,5.02]
[1737192595244,32.86054693,238.8,238.72,37.88054693]
[1737192595451,32.86054693,238.82,238.74,32.86054693]
[1737192595656,32.86054693,238.8,238.75,20.0]
[1737192596559,32.86054693,238.8,238.72,37.88054693]
[1737192597064,32.86054693,238.8,238.75,20.0]
[1737192597241,32.86054693,238.8,238.77,20.0]
[1737192597442,32.86054693,238.83,238.78,20.0]
[1737192598060,32.86054693,238.84,238.79,20.0]
[1737192598866,32.86054693,238.83,238.79,20.0]
[1737192599448,32.86054693,238.82,238.74,32.86054693]
[1737192599651,32.86054693,238.8,238.77,20.0]
[1737192600051,32.86054693,238.81,238.77,20.0]
[1737192600557,32.86054693,238.82,238.77,20.0]
[1737192601058,32.86054693,238.81,238.77,20.0]
[1737192601646,32.86054693,238.8,238.76,20.0]
[1737192601846,32.86054693,238.77,238.72,0.03]
[1737192602049,32.86054693,238.73,238.72,0.03]
[1737192602757,32.86054693,238.83,238.75,20.0]
[1737192603062,32.86054693,238.87,238.81,20.0]
[1737192603361,12.9134,238.95,238.76,4.94]
[1737192603544,8.7285,238.95,238.76,37.80054693]
[1737192603746,8.7285,238.95,238.79,20.0]
[1737192604145,12.9134,238.95,238.77,20.0]
[1737192604669,32.86054693,238.85,238.77,52.86054693]
[1737192605169,32.86054693,238.83,238.76,4.94]
[1737192605365,43.776884,238.91,238.73,1.69715905]
[1737192605539,20.0,238.91,238.72,0.03]
[1737192605744,20.19785718,238.82,238.72,20.22785718]
[1737192606048,20.0,238.92,238.78,20.0]
[1737192606253,20.19785718,238.85,238.8,20.0]
[1737192606449,23.776884,238.8,238.72,0.03]
[1737192606656,20.19785718,238.74,238.72,0.03]
[1737192608249,20.19785718,238.76,238.72,0.03]
[1737192608754,20.19785718,238.78,238.73,20.0]
[1737192609662,20.19785718,238.76,238.72,0.03]
[1737192611073,20.19785718,238.75,238.72,0.03]
[1737192611667,1.674715,238.82,238.77,20.0]
[1737192611870,20.19785718,238.85,238.79,20.0]
[1737192612058,20.19785718,238.83,238.79,20.0]
[1737192612771,20.19785718,238.83,238.77,20.0]
[1737192613071,20.19785718,238.83,238.78,4.1879]
[1737192613580,20.19785718,238.81,238.78,4.1879]
[1737192614075,20.19785718,238.94,238.8,20.19785718]
[1737192614251,20.19785718,238.94,238.88,20.0]
[1737192614567,20.19785718,238.92,238.78,20.97160278]
[1737192614759,20.19785718,238.82,238.78,4.1879]
[1737192615074,20.19785718,238.82,238.74,113.56925718]
[1737192615075,20.19785718,238.82,238.75,4.1884]
[1737192615372,20.19785718,238.8,238.77,20.0]
[1737192615575,20.19785718,238.82,238.78,20.0]
[1737192615871,27.962584,238.91,238.75,4.1884]
[1737192615872,20.19785718,238.8,238.75,4.1884]
[1737192616075,20.19785718,238.77,238.75,4.1884]
[1737192616745,20.19785718,238.77,238.72,0.03]
[1737192616951,20.19785718,238.74,238.72,4.2189]
[1737192617382,32.83525672,238.74,238.72,0.03]
[1737192618857,23.776884,238.73,238.72,0.03]
[1737192620274,32.83525672,238.74,238.72,0.03]
[1737192621358,7.9419,238.79,238.72,0.03]
[1737192621557,32.83525672,238.75,238.72,0.03]
[1737192623455,32.83525672,238.78,238.72,0.03]
[1737192624363,32.83525672,238.8,238.73,20.0]
[1737192624567,32.83525672,238.82,238.77,20.0]
[1737192624769,32.83525672,238.82,238.78,4.1879]
[1737192625365,32.83525672,238.8,238.78,4.1879]
[1737192625873,32.83525672,238.8,238.72,0.03]
[1737192626078,32.83525672,238.76,238.73,4.1888]
[1737192626862,32.83525672,238.76,238.72,0.03]
[1737192628283,32.83525672,238.78,238.72,0.03]
[1737192628890,32.83525672,238.76,238.72,0.03]
[1737192629266,27.964084,238.83,238.72,0.03]
[1737192629267,32.83525672,238.74,238.72,0.03]
[1737192629564,23.776884,238.73,238.72,0.03]
[1737192630189,25.452229,238.73,238.72,0.03]
[1737192630783,29.641029,238.73,238.72,0.03]
[1737192631162,32.76372603,238.73,238.72,0.03]
[1737192631773,28.57492603,238.73,238.72,0.03]
[1737192632375,25.452229,238.73,238.72,0.03]
[1737192632992,1.675345,238.73,238.72,0.03]
[1737192633278,32.83525672,238.76,238.72,0.03]
[1737192633472,32.83525672,238.74,238.72,0.03]
[1737192634889,32.83525672,238.76,238.72,0.03]
[1737192635265,32.83525672,238.74,238.72,0.03]
[1737192636066,32.83525672,238.76,238.72,0.03]
[1737192636281,32.83525672,238.82,238.72,32.86525672]